[Event "Jeux du Barreau 2019"]
[Site "Paris, France"]
[Date "2019.07.10"]
[Round "7.6"]
[White "Clair, Michael"]
[Black "Sainson, Michael"]
[Result "1/2-1/2"]
[TimeControl "15+3"]
[WhiteElo "1726"]
[BlackElo "1584"]

1. e4 {[%clk 00:15:05]} {[%emt 00:04:55]} e5 {[%clk 00:15:02]} {[%emt
00:00:04]} 2. Nf3 {[%clk 00:15:05]} {[%emt 00:00:02]} Nc6 {[%clk 00:15:05]}
{[%emt 00:00:01]} 3. Bb5 {[%clk 00:15:07]} {[%emt 00:00:01]} a6 {[%clk
00:15:07]} 4. Ba4 {[%clk 00:15:09]} Nf6 {[%clk 00:15:09]} {[%emt 00:00:03]} 5.
O-O {[%clk 00:15:11]} {[%emt 00:00:01]} b5 {[%clk 00:15:12]} 6. Bb3 {[%clk
00:15:13]} Be7 {[%clk 00:15:14]} {[%emt 00:00:01]} 7. Re1 {[%clk 00:15:08]}
{[%emt 00:00:07]} O-O {[%clk 00:15:15]} {[%emt 00:00:01]} 8. c3 {[%clk
00:15:08]} {[%emt 00:00:04]} d6 {[%clk 00:15:14]} {[%emt 00:00:04]} 9. h3
{[%clk 00:15:07]} {[%emt 00:00:03]} Be6 {[%clk 00:15:14]} {[%emt 00:00:04]} 10.
Bc2 {[%clk 00:15:01]} {[%emt 00:00:09]} Na5 {[%clk 00:14:13]} {[%emt 00:01:03]}
11. d4 {[%clk 00:14:53]} {[%emt 00:00:12]} exd4 {[%clk 00:13:55]} {[%emt
00:00:21]} 12. cxd4 {[%clk 00:14:52]} {[%emt 00:00:03]} c6 {[%clk 00:12:06]}
{[%emt 00:01:53]} 13. Be3 {[%clk 00:13:01]} {[%emt 00:01:53]} Nc4 {[%clk
00:11:49]} {[%emt 00:00:21]} 14. Bc1 {[%clk 00:13:02]} {[%emt 00:00:02]} h6
{[%clk 00:11:10]} {[%emt 00:00:42]} 15. Nc3 {[%clk 00:12:36]} {[%emt 00:00:29]}
Nh7 {[%clk 00:10:44]} {[%emt 00:00:29]} 16. d5 {[%clk 00:10:39]} {[%emt
00:01:59]} cxd5 {[%clk 00:10:11]} {[%emt 00:00:36]} 17. exd5 {[%clk 00:10:20]}
{[%emt 00:00:22]} Bc8 {[%clk 00:09:02]} {[%emt 00:01:13]} 18. Nd4 {[%clk
00:09:28]} {[%emt 00:00:55]} Bd7 {[%clk 00:07:45]} {[%emt 00:01:20]} 19. Qd3
{[%clk 00:08:34]} {[%emt 00:00:56]} Nf6 {[%clk 00:06:50]} {[%emt 00:00:59]} 20.
Qg3 {[%clk 00:05:32]} {[%emt 00:03:03]} Ne5 {[%clk 00:04:37]} {[%emt 00:02:18]}
21. Bf5 {[%clk 00:04:49]} {[%emt 00:00:46]} Bxf5 {[%clk 00:04:01]} {[%emt
00:00:39]} 22. Nxf5 {[%clk 00:04:50]} {[%emt 00:00:01]} Ng6 {[%clk 00:03:59]}
{[%emt 00:00:05]} 23. Nd4 {[%clk 00:04:32]} {[%emt 00:00:21]} Rc8 {[%clk
00:03:14]} {[%emt 00:00:48]} 24. Nc6 {[%clk 00:04:23]} {[%emt 00:00:11]} Qd7
{[%clk 00:03:05]} {[%emt 00:00:12]} 25. Nxe7+ {[%clk 00:03:54]} {[%emt
00:00:31]} Nxe7 {[%clk 00:03:05]} {[%emt 00:00:04]} 26. Bxh6 {[%clk 00:03:34]}
{[%emt 00:00:23]} Nf5 {[%clk 00:02:39]} {[%emt 00:00:29]} 27. Qd3 {[%clk
00:02:28]} {[%emt 00:01:09]} Nxh6 {[%clk 00:02:38]} {[%emt 00:00:04]} 28. Nd1
{[%clk 00:02:01]} {[%emt 00:00:30]} Qf5 {[%clk 00:02:29]} {[%emt 00:00:12]} 29.
Qb3 {[%clk 00:01:17]} {[%emt 00:00:47]} Qxd5 {[%clk 00:02:04]} {[%emt
00:00:28]} 30. Qa3 {[%clk 00:01:11]} {[%emt 00:00:09]} Rfe8 {[%clk 00:01:43]}
{[%emt 00:00:25]} 31. Ne3 {[%clk 00:01:13]} Qb7 {[%clk 00:01:35]} {[%emt
00:00:10]} 32. Qxd6 {[%clk 00:01:11]} {[%emt 00:00:06]} Rc6 {[%clk 00:01:21]}
{[%emt 00:00:17]} 33. Qd3 {[%clk 00:00:52]} {[%emt 00:00:22]} Rce6 {[%clk
00:01:07]} {[%emt 00:00:16]} 34. Rec1 {[%clk 00:00:43]} {[%emt 00:00:12]} Kh8
{[%clk 00:00:57]} {[%emt 00:00:13]} 35. Rc5 {[%clk 00:00:38]} {[%emt 00:00:08]}
Qd7 {[%clk 00:00:56]} {[%emt 00:00:04]} 36. Qc3 {[%clk 00:00:31]} {[%emt
00:00:11]} Ne4 {[%clk 00:00:50]} {[%emt 00:00:09]} 37. Rc7 {[%clk 00:00:33]}
{[%emt 00:00:01]} Nxc3 {[%clk 00:00:45]} {[%emt 00:00:08]} 38. Rxd7 {[%clk
00:00:35]} {[%emt 00:00:01]} Ne4 {[%clk 00:00:43]} {[%emt 00:00:04]} 39. Nd5
{[%clk 00:00:28]} {[%emt 00:00:10]} Rd6 {[%clk 00:00:41]} {[%emt 00:00:05]} 40.
Rxd6 Nxd6 {[%clk 00:00:43]} 41. Nc7 {[%clk 00:00:29]} {[%emt 00:00:02]} Re2
{[%clk 00:00:39]} {[%emt 00:00:06]} 42. Rb1 {[%clk 00:00:29]} {[%emt 00:00:04]}
a5 {[%emt 00:00:04]} 43. Rd1 {[%clk 00:00:31]} Ne4 {[%clk 00:00:36]} {[%emt
00:00:06]} 44. f3 {[%clk 00:00:28]} {[%emt 00:00:06]} Nf6 {[%clk 00:00:30]}
{[%emt 00:00:09]} 45. Rb1 {[%clk 00:00:29]} {[%emt 00:00:02]} Rd2 {[%clk
00:00:29]} {[%emt 00:00:03]} 46. Nxb5 {[%emt 00:00:02]} Rd5 {[%clk 00:00:29]}
{[%emt 00:00:02]} 47. Nc3 {[%clk 00:00:33]} {[%emt 00:00:01]} Rc5 {[%clk
00:00:31]} {[%emt 00:00:01]} 48. Rd1 {[%clk 00:00:35]} {[%emt 00:00:01]} Kh7
{[%clk 00:00:30]} {[%emt 00:00:04]} 49. Re1 {[%clk 00:00:37]} Rc7 {[%clk
00:00:29]} {[%emt 00:00:04]} 50. Kf2 Rb7 {[%clk 00:00:29]} {[%emt 00:00:03]} 51.
Re2 {[%emt 00:00:03]} Rd7 {[%clk 00:00:29]} {[%emt 00:00:02]} 52. Rc2 {[%clk
00:00:36]} {[%emt 00:00:08]} Nf5 {[%clk 00:00:30]} {[%emt 00:00:02]} 53. Ne2
{[%emt 00:00:07]} Nd4 {[%clk 00:00:31]} 54. Nxd4 Rxd4 {[%clk 00:00:34]} 55. Ke3
{[%clk 00:00:29]} {[%emt 00:00:05]} Rb4 {[%clk 00:00:35]} {[%emt 00:00:02]} 56.
b3 {[%clk 00:00:24]} {[%emt 00:00:08]} a4 {[%clk 00:00:34]} {[%emt 00:00:04]}
57. bxa4 {[%clk 00:00:18]} {[%emt 00:00:09]} Rxa4 {[%clk 00:00:36]} 58. Kf2
{[%clk 00:00:13]} {[%emt 00:00:08]} Kg6 {[%clk 00:00:36]} {[%emt 00:00:04]} 59.
Kg3 {[%clk 00:00:14]} {[%emt 00:00:01]} Kf5 {[%clk 00:00:36]} {[%emt 00:00:03]}
60. Rc5+ {[%clk 00:00:16]} {[%emt 00:00:02]} Ke6 {[%clk 00:00:37]} {[%emt
00:00:02]} 61. Rc2 {[%clk 00:00:18]} {[%emt 00:00:01]} Nd5 {[%clk 00:00:37]}
{[%emt 00:00:03]} 62. Re2+ {[%emt 00:00:02]} Kd6 {[%clk 00:00:38]} {[%emt
00:00:01]} 63. Rd2 {[%clk 00:00:21]} {[%emt 00:00:02]} Kc5 {[%clk 00:00:40]}
{[%emt 00:00:01]} 64. Rc2+ {[%clk 00:00:23]} Kb4 {[%clk 00:00:41]} {[%emt
00:00:01]} 65. Rd2 {[%clk 00:00:22]} {[%emt 00:00:04]} Nc3 {[%clk 00:00:42]}
{[%emt 00:00:02]} 66. Rd7 {[%clk 00:00:22]} {[%emt 00:00:03]} Rxa2 {[%clk
00:00:41]} {[%emt 00:00:04]} 67. Rxf7 {[%clk 00:00:24]} {[%emt 00:00:02]} g5
{[%clk 00:00:42]} {[%emt 00:00:01]} 68. Rg7 {[%clk 00:00:25]} {[%emt 00:00:02]}
Ra5 {[%clk 00:00:44]} {[%emt 00:00:02]} 69. Kg4 {[%clk 00:00:26]} {[%emt
00:00:02]} Ne2 {[%clk 00:00:44]} {[%emt 00:00:02]} 70. Rxg5 {[%clk 00:00:26]}
{[%emt 00:00:03]} Ra7 {[%clk 00:00:41]} {[%emt 00:00:06]} 71. h4 {[%clk
00:00:26]} {[%emt 00:00:02]} Rh7 {[%clk 00:00:40]} {[%emt 00:00:04]} 72. h5
{[%clk 00:00:27]} {[%emt 00:00:01]} Nd4 {[%clk 00:00:40]} {[%emt 00:00:03]} 73.
Re5 {[%clk 00:00:21]} {[%emt 00:00:09]} Nc6 {[%clk 00:00:39]} {[%emt 00:00:04]}
74. Re6 {[%emt 00:00:09]} Nd8 {[%clk 00:00:35]} {[%emt 00:00:01]} 75. Rg6
{[%clk 00:00:22]} {[%emt 00:00:01]} Kc5 {[%clk 00:00:35]} {[%emt 00:00:04]} 76.
Kf5 {[%clk 00:00:20]} {[%emt 00:00:04]} Kd5 {[%clk 00:00:36]} {[%emt 00:00:03]}
77. Kf6 {[%clk 00:00:21]} {[%emt 00:00:01]} Ne6 {[%clk 00:00:35]} {[%emt
00:00:05]} 78. h6 {[%clk 00:00:18]} {[%emt 00:00:07]} Nf8 {[%clk 00:00:35]}
{[%emt 00:00:03]} 1/2-1/2

[Event "Jeux du Barreau 2019"]
[Site "Paris, France"]
[Date "2019.07.10"]
[Round "7.7"]
[White "Abulius, Thomas"]
[Black "Leblic, Maximilien"]
[Result "1-0"]
[TimeControl "15+3"]
[WhiteElo "1390"]
[BlackElo "1289"]

1. d4 {[%clk 00:15:05]} d5 {[%clk 00:15:02]} {[%emt 00:00:05]} 2. c4 {[%clk
00:15:07]} {[%emt 00:00:01]} e6 {[%clk 00:15:04]} {[%emt 00:00:01]} 3. Nf3
{[%clk 00:15:09]} Nf6 {[%clk 00:15:03]} {[%emt 00:00:03]} 4. Bf4 {[%clk
00:15:11]} {[%emt 00:00:01]} Bd6 {[%clk 00:15:02]} {[%emt 00:00:04]} 5. Bg3
{[%clk 00:15:13]} {[%emt 00:00:02]} b6 {[%clk 00:14:23]} {[%emt 00:00:41]} 6.
e3 {[%clk 00:15:13]} {[%emt 00:00:03]} Bb7 {[%clk 00:14:25]} {[%emt 00:00:02]}
7. Nc3 {[%clk 00:15:07]} {[%emt 00:00:08]} Bb4 {[%clk 00:14:19]} {[%emt
00:00:09]} 8. a3 {[%clk 00:13:44]} {[%emt 00:01:27]} Bxc3+ {[%clk 00:14:15]}
{[%emt 00:00:07]} 9. bxc3 {[%clk 00:13:46]} Ne4 {[%clk 00:14:17]} 10. Qc2
{[%clk 00:13:34]} {[%emt 00:00:15]} Nxg3 {[%clk 00:13:38]} {[%emt 00:00:41]} 11.
hxg3 {[%clk 00:13:36]} {[%emt 00:00:01]} O-O {[%clk 00:13:38]} {[%emt
00:00:02]} 12. Qxh7# {[%clk 00:13:37]} {[%emt 00:00:03]} 1-0

[Event "Jeux du Barreau 2019"]
[Site "Paris, France"]
[Date "2019.07.10"]
[Round "7.8"]
[White "Lanoe-Campbell, Luca"]
[Black "Delage, Pierre Luc"]
[Result "0-1"]
[TimeControl "15+3"]
[WhiteElo "1379"]
[BlackElo "1399"]

1. e4 {[%clk 00:15:00]} {[%emt 00:00:04]} e5 {[%clk 00:14:59]} {[%emt
00:00:07]} 2. Nf3 {[%clk 00:15:00]} {[%emt 00:00:04]} d6 {[%clk 00:14:49]}
{[%emt 00:00:13]} 3. d4 {[%clk 00:14:12]} {[%emt 00:00:50]} exd4 {[%clk
00:14:47]} {[%emt 00:00:05]} 4. Nxd4 {[%clk 00:13:52]} {[%emt 00:00:23]} Nf6
{[%clk 00:14:23]} {[%emt 00:00:27]} 5. Nc3 {[%clk 00:13:12]} {[%emt 00:00:43]}
Be7 {[%clk 00:13:42]} {[%emt 00:00:44]} 6. Bd3 {[%clk 00:12:44]} {[%emt
00:00:31]} O-O {[%clk 00:13:37]} {[%emt 00:00:09]} 7. Bg5 {[%clk 00:12:00]}
{[%emt 00:00:45]} Nbd7 {[%clk 00:13:04]} {[%emt 00:00:38]} 8. Qd2 {[%clk
00:11:12]} {[%emt 00:00:50]} Ne5 {[%clk 00:11:54]} {[%emt 00:01:13]} 9. O-O-O
{[%clk 00:10:24]} {[%emt 00:00:52]} Nxd3+ {[%clk 00:11:38]} {[%emt 00:00:20]}
10. Qxd3 {[%clk 00:10:19]} {[%emt 00:00:07]} Ng4 {[%clk 00:10:33]} {[%emt
00:01:08]} 11. Bxe7 {[%clk 00:09:47]} {[%emt 00:00:34]} Qxe7 {[%clk 00:10:33]}
{[%emt 00:00:04]} 12. Rdf1 {[%clk 00:09:25]} {[%emt 00:00:26]} Ne5 {[%clk
00:10:19]} {[%emt 00:00:17]} 13. Qe2 {[%clk 00:08:24]} {[%emt 00:01:02]} c5
{[%clk 00:09:46]} {[%emt 00:00:37]} 14. Nf3 {[%clk 00:06:44]} {[%emt 00:01:43]}
Be6 {[%clk 00:09:12]} {[%emt 00:00:38]} 15. Nd5 {[%clk 00:05:56]} {[%emt
00:00:50]} Qd7 {[%clk 00:07:45]} {[%emt 00:01:30]} 16. Nxe5 {[%clk 00:05:32]}
{[%emt 00:00:28]} dxe5 {[%clk 00:07:40]} {[%emt 00:00:08]} 17. Rd1 {[%clk
00:05:26]} {[%emt 00:00:09]} Qa4 {[%clk 00:07:21]} {[%emt 00:00:21]} 18. a3
{[%clk 00:03:36]} {[%emt 00:01:52]} c4 {[%clk 00:06:49]} {[%emt 00:00:36]} 19.
c3 {[%clk 00:02:39]} {[%emt 00:00:59]} Rfd8 {[%clk 00:05:58]} {[%emt 00:00:55]}
20. Nc7 {[%clk 00:02:31]} {[%emt 00:00:12]} Rac8 {[%clk 00:04:57]} {[%emt
00:01:03]} 21. Nxe6 {[%clk 00:02:25]} {[%emt 00:00:10]} fxe6 {[%clk 00:04:56]}
{[%emt 00:00:03]} 22. h4 {[%clk 00:01:51]} {[%emt 00:00:37]} Rf8 {[%clk
00:04:39]} {[%emt 00:00:19]} 23. g4 {[%clk 00:01:28]} {[%emt 00:00:26]} Qe8
{[%clk 00:04:01]} {[%emt 00:00:42]} 24. h5 {[%clk 00:01:17]} {[%emt 00:00:14]}
Qe7 {[%clk 00:03:55]} {[%emt 00:00:08]} 25. Rd2 {[%clk 00:01:00]} {[%emt
00:00:21]} Qg5 {[%clk 00:03:52]} {[%emt 00:00:05]} 26. Rhd1 {[%clk 00:00:49]}
{[%emt 00:00:14]} b5 {[%clk 00:03:35]} {[%emt 00:00:21]} 27. Kb1 {[%clk
00:00:48]} {[%emt 00:00:05]} a5 {[%clk 00:03:20]} {[%emt 00:00:17]} 28. Rd6
{[%clk 00:00:39]} {[%emt 00:00:12]} Rfe8 {[%clk 00:03:03]} {[%emt 00:00:19]} 29.
Rd7 {[%clk 00:00:36]} {[%emt 00:00:07]} Rf8 {[%clk 00:02:24]} {[%emt 00:00:41]}
30. Rb7 {[%emt 00:00:16]} Rb8 {[%clk 00:02:11]} {[%emt 00:00:14]} 31. Rdd7
{[%clk 00:00:20]} {[%emt 00:00:09]} Rxb7 {[%clk 00:02:03]} {[%emt 00:00:12]} 32.
Rxb7 {[%clk 00:00:22]} {[%emt 00:00:01]} b4 {[%clk 00:01:47]} {[%emt 00:00:18]}
33. axb4 {[%clk 00:00:19]} {[%emt 00:00:06]} axb4 {[%clk 00:01:46]} {[%emt
00:00:04]} 34. Rxb4 {[%clk 00:00:19]} {[%emt 00:00:03]} Rc8 {[%clk 00:01:27]}
{[%emt 00:00:21]} 35. Rxc4 {[%clk 00:00:17]} {[%emt 00:00:06]} Re8 {[%clk
00:01:19]} {[%emt 00:00:09]} 36. f3 {[%clk 00:00:16]} {[%emt 00:00:06]} Qe7
{[%clk 00:01:11]} {[%emt 00:00:11]} 37. b4 {[%clk 00:00:14]} {[%emt 00:00:06]}
Ra8 {[%clk 00:01:01]} {[%emt 00:00:12]} 38. Qe3 {[%clk 00:00:05]} {[%emt
00:00:12]} Qd7 {[%clk 00:00:48]} {[%emt 00:00:14]} 39. Kb2 {[%emt 00:00:07]}
0-1

[Event "Jeux du Barreau 2019"]
[Site "Paris, France"]
[Date "2019.07.10"]
[Round "7.9"]
[White "Lepetit, Jean Pierre"]
[Black "Constant, Arnaud"]
[Result "1-0"]
[TimeControl "15+3"]
[WhiteElo "1078"]
[BlackElo "1399"]

1. e4 {[%emt 00:00:02]} e5 2. Nf3 {[%emt 00:00:03]} Nc6 {[%emt 00:00:02]} 3.
Bc4 {[%clk 00:14:52]} {[%emt 00:00:05]} Nf6 {[%clk 00:15:05]} {[%emt 00:00:02]}
4. Ng5 {[%clk 00:14:51]} {[%emt 00:00:04]} d5 {[%clk 00:14:49]} {[%emt
00:00:19]} 5. exd5 {[%clk 00:14:52]} {[%emt 00:00:03]} Nxd5 {[%clk 00:14:49]}
{[%emt 00:00:02]} 6. d4 {[%clk 00:14:48]} {[%emt 00:00:07]} Be6 {[%clk
00:13:31]} {[%emt 00:01:21]} 7. Nxe6 {[%clk 00:14:32]} {[%emt 00:00:19]} fxe6
{[%clk 00:13:30]} {[%emt 00:00:04]} 8. O-O {[%clk 00:14:31]} {[%emt 00:00:03]}
Qf6 {[%clk 00:13:26]} {[%emt 00:00:06]} 9. dxe5 {[%clk 00:14:08]} {[%emt
00:00:28]} Qxe5 {[%clk 00:12:52]} {[%emt 00:00:36]} 10. Re1 {[%clk 00:14:04]}
{[%emt 00:00:08]} Qd6 {[%clk 00:12:54]} {[%emt 00:00:02]} 11. Nc3 {[%clk
00:13:49]} {[%emt 00:00:18]} Nce7 {[%clk 00:11:50]} {[%emt 00:01:07]} 12. Bg5
{[%clk 00:13:21]} {[%emt 00:00:30]} c6 {[%clk 00:11:02]} {[%emt 00:00:52]} 13.
Qg4 {[%clk 00:13:11]} {[%emt 00:00:13]} Nf5 {[%clk 00:07:15]} {[%emt 00:03:55]}
14. Rad1 {[%clk 00:12:40]} {[%emt 00:00:35]} Be7 {[%emt 00:00:39]} 15. Bxe7
{[%emt 00:00:17]} Qxe7 {[%clk 00:05:42]} {[%emt 00:00:39]} 16. Ne4 {[%clk
00:10:58]} {[%emt 00:01:46]} O-O {[%clk 00:04:57]} {[%emt 00:00:47]} 17. Bb3
{[%clk 00:10:54]} {[%emt 00:00:08]} Nf6 {[%clk 00:04:07]} {[%emt 00:00:53]} 18.
Nxf6+ {[%clk 00:10:37]} {[%emt 00:00:18]} Qxf6 {[%clk 00:04:08]} {[%emt
00:00:03]} 19. Rd7 {[%clk 00:10:30]} {[%emt 00:00:11]} Rae8 {[%clk 00:02:00]}
{[%emt 00:02:11]} 20. Red1 {[%clk 00:10:08]} {[%emt 00:00:24]} Kh8 {[%clk
00:01:58]} {[%emt 00:00:05]} 21. Rxb7 {[%clk 00:10:06]} {[%emt 00:00:06]} Nh6
{[%clk 00:01:08]} {[%emt 00:00:50]} 22. Qd4 {[%clk 00:08:52]} {[%emt 00:01:19]}
Rd8 {[%clk 00:00:50]} {[%emt 00:00:12]} 23. Rd7 {[%clk 00:08:12]} {[%emt
00:00:54]} 1-0

[Event "Jeux du Barreau 2019"]
[Site "Paris, France"]
[Date "2019.07.10"]
[Round "7.10"]
[White "Danon, Agnes"]
[Black "De Vareilles-Sommier, Ferdinand"]
[Result "0-1"]
[TimeControl "15+3"]
[WhiteElo "1199"]
[BlackElo "1399"]

1. Nf3 {[%clk 00:15:03]} {[%emt 00:00:03]} c5 {[%clk 00:15:04]} {[%emt
00:00:03]} 2. g3 {[%clk 00:14:57]} {[%emt 00:00:08]} Nc6 {[%clk 00:15:05]}
{[%emt 00:00:03]} 3. d3 {[%clk 00:14:37]} {[%emt 00:00:23]} g6 {[%clk
00:15:06]} {[%emt 00:00:02]} 4. Bg2 {[%clk 00:14:38]} {[%emt 00:00:02]} Bg7
{[%clk 00:15:05]} {[%emt 00:00:03]} 5. Nc3 {[%clk 00:14:35]} {[%emt 00:00:06]}
Nf6 {[%clk 00:14:43]} {[%emt 00:00:25]} 6. e4 {[%clk 00:14:31]} {[%emt
00:00:07]} d6 {[%clk 00:14:37]} {[%emt 00:00:09]} 7. O-O {[%clk 00:14:04]}
{[%emt 00:00:30]} O-O {[%clk 00:13:56]} {[%emt 00:00:44]} 8. d4 {[%clk
00:13:53]} {[%emt 00:00:14]} cxd4 {[%clk 00:13:49]} {[%emt 00:00:11]} 9. Nxd4
{[%clk 00:13:47]} {[%emt 00:00:05]} Nxe4 {[%clk 00:12:14]} {[%emt 00:01:42]} 10.
Nxe4 {[%clk 00:13:42]} {[%emt 00:00:08]} Nxd4 {[%clk 00:11:35]} {[%emt
00:00:42]} 11. c3 {[%clk 00:12:14]} {[%emt 00:01:31]} Nc6 {[%clk 00:11:13]}
{[%emt 00:00:24]} 12. b4 {[%clk 00:11:36]} {[%emt 00:00:41]} Bf5 {[%clk
00:11:03]} {[%emt 00:00:13]} 13. g4 {[%clk 00:10:09]} {[%emt 00:01:23]} Bxe4
{[%clk 00:11:01]} {[%emt 00:00:12]} 14. Bxe4 {[%clk 00:10:08]} {[%emt
00:00:04]} Nxb4 {[%clk 00:10:54]} {[%emt 00:00:11]} 15. Bxb7 {[%clk 00:09:00]}
{[%emt 00:01:08]} Rb8 {[%clk 00:10:47]} {[%emt 00:00:09]} 16. Qf3 {[%clk
00:08:25]} {[%emt 00:00:42]} Qc7 {[%clk 00:08:10]} {[%emt 00:02:37]} 17. Bd5
{[%clk 00:07:39]} {[%emt 00:00:52]} Nxd5 {[%clk 00:08:02]} {[%emt 00:00:12]} 18.
Qxd5 {[%clk 00:07:32]} {[%emt 00:00:09]} Bxc3 {[%clk 00:07:59]} {[%emt
00:00:07]} 19. Bh6 {[%clk 00:06:57]} {[%emt 00:00:38]} Bxa1 {[%clk 00:07:46]}
{[%emt 00:00:16]} 20. Bxf8 {[%clk 00:06:55]} {[%emt 00:00:04]} Kxf8 {[%clk
00:07:23]} {[%emt 00:00:28]} 21. Rxa1 {[%clk 00:06:53]} {[%emt 00:00:05]} Qc5
{[%clk 00:07:01]} {[%emt 00:00:23]} 22. Qd2 {[%clk 00:06:16]} {[%emt 00:00:42]}
Rb4 {[%clk 00:06:12]} {[%emt 00:00:52]} 23. Rc1 {[%clk 00:05:35]} {[%emt
00:00:44]} Rxg4+ {[%clk 00:05:52]} {[%emt 00:00:23]} 24. Kf1 {[%clk 00:05:12]}
{[%emt 00:00:26]} Qb5+ {[%clk 00:05:51]} {[%emt 00:00:01]} 25. Qe2 {[%clk
00:04:41]} {[%emt 00:00:36]} Qxe2+ {[%clk 00:05:43]} {[%emt 00:00:11]} 26. Kxe2
{[%emt 00:00:03]} Ra4 {[%clk 00:05:19]} {[%emt 00:00:19]} 27. Ra1 {[%clk
00:04:29]} {[%emt 00:00:22]} e6 {[%clk 00:05:18]} {[%emt 00:00:03]} 28. Kd3
{[%clk 00:04:09]} {[%emt 00:00:24]} d5 {[%clk 00:05:14]} {[%emt 00:00:07]} 29.
Kc3 {[%clk 00:04:06]} {[%emt 00:00:05]} e5 {[%clk 00:05:15]} {[%emt 00:00:02]}
30. Kb3 {[%clk 00:03:58]} {[%emt 00:00:11]} Rf4 {[%clk 00:05:14]} {[%emt
00:00:04]} 31. Re1 {[%clk 00:03:39]} {[%emt 00:00:23]} e4 {[%clk 00:05:12]}
{[%emt 00:00:05]} 32. Rd1 {[%clk 00:02:41]} {[%emt 00:01:01]} e3 {[%clk
00:04:58]} {[%emt 00:00:16]} 33. fxe3 {[%clk 00:02:33]} {[%emt 00:00:11]} Rf3
{[%clk 00:04:44]} {[%emt 00:00:17]} 34. Rd3 {[%clk 00:02:19]} {[%emt 00:00:17]}
d4 {[%clk 00:04:41]} {[%emt 00:00:06]} 35. Kc4 {[%clk 00:02:18]} {[%emt
00:00:04]} dxe3 {[%clk 00:04:37]} {[%emt 00:00:07]} 36. Kd4 {[%clk 00:01:23]}
{[%emt 00:00:58]} e2 {[%clk 00:04:10]} {[%emt 00:00:29]} 37. Rxf3 {[%clk
00:00:37]} {[%emt 00:00:49]} e1=Q {[%clk 00:04:11]} {[%emt 00:00:03]} 38. a4
{[%clk 00:00:28]} {[%emt 00:00:12]} Qb4+ {[%clk 00:04:09]} {[%emt 00:00:02]} 39.
Kd5 {[%clk 00:00:22]} {[%emt 00:00:11]} Qb7+ {[%clk 00:04:10]} {[%emt
00:00:02]} 0-1

[Event "Jeux du Barreau 2019"]
[Site "Paris, France"]
[Date "2019.07.10"]
[Round "7.11"]
[White "Castel, David"]
[Black "Rabbe, Laurent"]
[Result "1-0"]
[TimeControl "15+3"]
[WhiteElo "1366"]
[BlackElo "1399"]

1. d4 {[%clk 00:15:03]} {[%emt 00:00:02]} d5 {[%clk 00:15:01]} {[%emt
00:00:05]} 2. c4 {[%clk 00:15:04]} {[%emt 00:00:01]} e6 {[%clk 00:15:00]}
{[%emt 00:00:04]} 3. a3 {[%clk 00:15:06]} {[%emt 00:00:02]} Nf6 {[%clk
00:14:49]} {[%emt 00:00:13]} 4. Nc3 {[%clk 00:15:08]} {[%emt 00:00:02]} Nc6
{[%clk 00:14:40]} {[%emt 00:00:11]} 5. Nf3 {[%clk 00:15:09]} {[%emt 00:00:02]}
Bd6 {[%clk 00:14:33]} {[%emt 00:00:10]} 6. Bg5 {[%clk 00:15:05]} {[%emt
00:00:08]} b6 {[%clk 00:14:16]} {[%emt 00:00:21]} 7. e3 {[%clk 00:14:44]}
{[%emt 00:00:24]} O-O {[%clk 00:14:15]} {[%emt 00:00:04]} 8. Bd3 {[%clk
00:14:45]} {[%emt 00:00:02]} e5 {[%clk 00:12:56]} {[%emt 00:01:21]} 9. Nxd5
{[%clk 00:14:17]} {[%emt 00:00:31]} Ba6 {[%clk 00:11:43]} {[%emt 00:02:01]} 10.
b3 {[%clk 00:13:15]} {[%emt 00:00:32]} Qd7 {[%clk 00:10:58]} {[%emt 00:00:47]}
11. Bxf6 {[%clk 00:13:14]} {[%emt 00:00:04]} gxf6 {[%clk 00:10:51]} {[%emt
00:00:11]} 12. Nxf6+ {[%clk 00:13:13]} {[%emt 00:00:04]} Kg7 {[%clk 00:10:45]}
{[%emt 00:00:06]} 13. Nxd7 {[%clk 00:13:13]} {[%emt 00:00:05]} Rfe8 {[%clk
00:10:41]} {[%emt 00:00:07]} 14. Bc2 {[%clk 00:13:11]} {[%emt 00:00:04]} f6
{[%clk 00:10:08]} {[%emt 00:00:36]} 15. Qd3 {[%clk 00:13:11]} {[%emt 00:00:03]}
Rf8 {[%clk 00:09:38]} {[%emt 00:00:32]} 16. Qxh7# {[%clk 00:13:08]} {[%emt
00:00:07]} 1-0